Workbook

Sheet Sheet1
B1: The Osculating Circle
B3: This graphing utility lets you investigate
B4: the osculating circle
C5: whose radius = 1/curvature
C6: at any given point x0
B7: associated with any desired function
D8: y = f(x)
B9: on any interval from x = a to x = b.
A12: Enter the function in terms of x: f(x) = | F12: exp(-x)
A15: Now enter the interval for x:
C16: xMin = | D16: -3 | M16: Select a point x0 on the curve = | Q16: =P18 -> 2.36
C17: xMax = | D17: 5
O18: 67 | P18: =D16+O18*(D17-D16)/100 -> 2.36
M21: The value of the function at x0 = | Q21: =P18 -> 2.36
N22: is f ( x0) = | P22: =Sheet2!H2 -> 0.0954
A23: Click each item below for suggestions and investigations | M23: The value of the curvature = | Q23: =Sheet2!H3 -> 0.0934
B24: Item 1 | M24: and the radius of curvature = | Q24: =r0 -> 10.71
B25: Item 2
B26: Item 3
A29: To access/download all the DIGMath Apps for Calculus
A30: Click this link: | C30: DIGMath for Calculus
A32: Created by: Sheldon P. Gordon & Florence S. Gordon
A33: Farmingdale State College NYIT
A34: Development of this module was supported by the
A35: NSF's Division of Undergraduate Education
A36: under grants DUE-0310123 and DUE-0442160.

Sheet Sheet2
A1: x | B1: f(x) | C1: slope | D1: f"(x) | E1: Curvature | F1: Radius of Curve | G1: x = | H1: =Sheet1!Q16 -> 2.36 | I1: =H1 -> 2.36 | J1: =H1 -> 2.36 | L1: for circle: dx = | N1: =(r0/50) -> 0.2141455393
G2: y = | H2: =LOOKUP(H1,A3:A505,B3:B505) -> 0.09543581066 | I2: =H2 -> 0.09543581066 | J2: =H2 -> 0.09543581066
A3: =Sheet1!D16 -> -3.00 | B3: =EXP(-x) -> 20.08553692 | C3: =(B505-B3)/0.0001 -> -20.08453268 | D3: =(C4-C3)/dx -> 19.92502726 | E3: =ABS(D3)/(1+C3^2)^(3/2) -> 0.002450195878 | F3: =1/E3 -> 408.131 | G3: curvature = | H3: =LOOKUP(H1,A3:A503,E3:E503) -> 0.09339442731 | I3: =0 -> 0 | J3: =H3 -> 0.09339442731 | L3: slope = | M3: =IF(N4>=0, N3,N3) -> -0.09543103903 | N3: =LOOKUP(x0,A3:A503,C3:C503) -> -0.09543103903 | O3: slope
A4: =A3+Sheet2!H$5 -> -2.98 | B4: 19.76735691 | C4: =(B506-B4)/0.0001 -> -19.76636857 | D4: 19.60938991 | E4: =ABS(D4)/(1+C4^2)^(3/2) -> 0.002529404075 | F4: =IF(1/E4>100,F3,1/E4) -> 408.131 | G4: radius = | H4: =1/k -> 10.70727696 | L4: x1= | M4: =IF(con>=0,x0-r0*SIN(ATAN(m)),x0+r0*SIN(ATAN(m))) -> 3.377185268 | N4: =LOOKUP(x0,A3:A503,D3:D503) -> 0.09467315391 | O4: f"
A5: =A4+Sheet2!H$5 -> -2.97 | B5: 19.45421726 | C5: -19.45324458 | D5: 19.29875266 | E5: 0.002611162685 | F5: =IF(1/E5>100,F4,1/E5) -> 408.131 | G5: delta x = | H5: =(Sheet1!D17-Sheet1!D16)/501 -> 0.01596806387 | L5: y1= | M5: =IF(con>=0,y0+r0*COS(ATAN(m)),y0-r0*COS(ATAN(m))) -> 10.75428725
A6: =A5+Sheet2!H$5 -> -2.95 | B6: 19.14603814 | C6: -19.14508087 | D6: 18.99303629 | E6: 0.00269555316 | F6: 408.131
A7: =A6+Sheet2!H$5 -> -2.94 | B7: 18.84274096 | C7: -18.84179885 | D7: 18.69216285 | E7: 0.002782659508 | F7: 408.131 | G7: x | H7: y | I7: ="- y" -> - y
A8: =A7+Sheet2!H$5 -> -2.92 | B8: 18.54424838 | C8: -18.5433212 | D8: 18.39605562 | E8: 0.002872568373 | F8: 408.131 | G8: =xx0-r0 -> -7.330091695 | H8: =yy0+SQRT(r0^2-(G8-xx0)^2) -> 10.75428725 | I8: =2*yy0-H8 -> 10.75428725
A9: =A8+Sheet2!H$5 -> -2.90 | B9: 18.2504843 | C9: -18.24957181 | D9: 18.1046391 | E9: 0.002965369112 | F9: 408.131 | G9: =G8+dr -> -7.115946156 | H9: 12.88500847 | I9: 8.623566042 | L9: vertical line
A10: =A9+Sheet2!H$5 -> -2.89 | B10: 17.96137381 | C10: -17.96047577 | D10: 17.81783898 | E10: 0.003061153877 | F10: 408.131 | G10: -6.901800617 | H10: 13.7523248 | I10: 7.756249705 | L10: =x0 -> 2.36 | M10: 0
A11: =A10+Sheet2!H$5 -> -2.87 | B11: 17.6768432 | C11: -17.67595938 | D11: 17.53558214 | E11: 0.003160017704 | F11: 408.131 | G11: -6.687655077 | H11: 14.4073365 | I11: 7.101238009 | L11: =L10 -> 2.36 | M11: =LOOKUP(L11,A3:A503,F3:F503) -> 10.70727696
A12: =A11+Sheet2!H$5 -> -2.86 | B12: 17.3968199 | C12: -17.39595009 | D12: 17.25779659 | E12: 0.003262058589 | F12: 408.131 | G12: -6.473509538 | H12: 14.95066567 | I12: 6.557908839
A13: =A12+Sheet2!H$5 -> -2.84 | B13: 17.12123252 | C13: -17.12037649 | D13: 16.98441152 | E13: 0.003367377589 | F13: 408.131 | G13: -6.259363999 | H13: 15.42148108 | I13: 6.08709343
A14: =A13+Sheet2!H$5 -> -2.82 | B14: 16.85001079 | C14: -16.84916832 | D14: 16.71535721 | E14: 0.003476078901 | F14: 408.131 | G14: -6.04521846 | H14: 15.83996203 | I14: 5.668612475
A15: =A14+Sheet2!H$5 -> -2.81 | B15: 16.58308556 | C15: -16.58225643 | D15: 16.45056505 | E15: 0.003588269965 | F15: 408.131 | G15: -5.83107292 | H15: 16.2181468 | I15: 5.290427712
A16: =A15+Sheet2!H$5 -> -2.79 | B16: 16.32038875 | C16: -16.31957276 | D16: 16.18996753 | E16: 0.003704061555 | F16: 408.131 | G16: -5.616927381 | H16: 16.5639101 | I16: 4.944664408
A17: =A16+Sheet2!H$5 -> -2.78 | B17: 16.06185339 | C17: -16.06105032 | D17: 15.93349821 | E17: 0.003823567877 | F17: 408.131 | G17: -5.402781842 | H17: 16.882742 | I17: 4.625832513
A18: =A17+Sheet2!H$5 -> -2.76 | B18: 15.80741355 | C18: -15.8066232 | D18: 15.68109167 | E18: 0.003946906671 | F18: 408.131 | G18: -5.188636303 | H18: 17.17865343 | I18: 4.329921076
A19: =A18+Sheet2!H$5 -> -2.74 | B19: 15.55700436 | C19: -15.55622653 | D19: 15.43268358 | E19: 0.004074199318 | F19: 408.131 | G19: -4.974490763 | H19: 17.45468183 | I19: 4.053892681
A20: =A19+Sheet2!H$5 -> -2.73 | B20: 15.31056196 | C20: -15.30979645 | D20: 15.18821057 | E20: 0.004205570941 | F20: 408.131 | G20: -4.760345224 | H20: 17.7131936 | I20: 3.795380914
A21: =A20+Sheet2!H$5 -> -2.71 | B21: 15.06802351 | C21: -15.06727014 | D21: 14.94761033 | E21: 0.004341150514 | F21: 408.131 | G21: -4.546199685 | H21: 17.95607529 | I21: 3.552499222
A22: =A21+Sheet2!H$5 -> -2.70 | B22: 14.82932718 | C22: -14.82858574 | D22: 14.71082149 | E22: 0.004481070977 | F22: 408.131 | G22: -4.332054146 | H22: 18.18485975 | I22: 3.323714757
A23: =A22+Sheet2!H$5 -> -2.68 | B23: 14.5944121 | C23: -14.5936824 | D23: 14.47778369 | E23: 0.004625469351 | F23: 408.131 | G23: -4.117908606 | H23: 18.40081246 | I23: 3.107762045
A24: =A23+Sheet2!H$5 -> -2.66 | B24: 14.36321837 | C24: -14.36250023 | D24: 14.2484375 | E24: 0.004774486849 | F24: 408.131 | G24: -3.903763067 | H24: 18.6049924 | I24: 2.903582107
A25: =A24+Sheet2!H$5 -> -2.65 | B25: 14.13568703 | C25: -14.13498027 | D25: 14.02272443 | E25: 0.004928269002 | F25: 408.131 | G25: -3.689617528 | H25: 18.79829609 | I25: 2.710278415
A26: =A25+Sheet2!H$5 -> -2.63 | B26: 13.91176007 | C26: -13.91106451 | D26: 13.80058695 | E26: 0.005086965778 | F26: 408.131 | G26: -3.475471988 | H26: 18.98149021 | I26: 2.527084298
A27: =A26+Sheet2!H$5 -> -2.62 | B27: 13.6913804 | C27: -13.69069586 | D27: 13.58196839 | E27: 0.005250731713 | F27: 408.131 | G27: -3.261326449 | H27: 19.15523614 | I27: 2.353338371
A28: =A27+Sheet2!H$5 -> -2.60 | B28: 13.47449182 | C28: -13.47381812 | D28: 13.36681303 | E28: 0.005419726033 | F28: 408.131 | G28: -3.04718091 | H28: 19.32010883 | I28: 2.188465684
A29: =A28+Sheet2!H$5 -> -2.58 | B29: 13.26103902 | C29: -13.26037599 | D29: 13.155066 | E29: 0.005594112789 | F29: 408.131 | G29: -2.833035371 | H29: 19.47661146 | I29: 2.031963047
A30: =A29+Sheet2!H$5 -> -2.57 | B30: 13.05096758 | C30: -13.05031506 | D30: 12.94667331 | E30: 0.005774060991 | F30: 408.131 | G30: -2.618889831 | H30: 19.62518706 | I30: 1.883387448
A31: =A30+Sheet2!H$5 -> -2.55 | B31: 12.84422394 | C31: -12.84358175 | D31: 12.74158182 | E31: 0.005959744747 | F31: 408.131 | G31: -2.404744292 | H31: 19.7662277 | I31: 1.742346812
A32: =A31+Sheet2!H$5 -> -2.54 | B32: 12.64075538 | C32: -12.64012336 | D32: 12.53973923 | E32: 0.0061513434 | F32: 408.131 | G32: -2.190598753 | H32: 19.90008197 | I32: 1.608492534
A33: =A32+Sheet2!H$5 -> -2.52 | B33: 12.44051001 | C33: -12.439888 | D33: 12.34109409 | E33: 0.006349041675 | F33: 408.131 | G33: -1.976453214 | H33: 20.02706111 | I33: 1.481513399
A34: =A33+Sheet2!H$5 -> -2.50 | B34: 12.24343678 | C34: -12.24282462 | D34: 12.14559573 | E34: 0.006553029822 | F34: 408.131 | G34: -1.762307674 | H34: 20.14744393 | I34: 1.361130582
A35: =A34+Sheet2!H$5 -> -2.49 | B35: 12.04948543 | C35: -12.04888298 | D35: 11.95319431 | E35: 0.006763503771 | F35: 408.131 | G35: -1.548162135 | H35: 20.261481 | I35: 1.247093508
A36: =A35+Sheet2!H$5 -> -2.47 | B36: 11.85860652 | C36: -11.85801361 | D36: 11.76384076 | E36: 0.006980665274 | F36: 408.131 | G36: -1.334016596 | H36: 20.36939812 | I36: 1.139176388
A37: =A36+Sheet2!H$5 -> -2.46 | B37: 11.67075136 | C37: -11.67016784 | D37: 11.57748682 | E37: 0.007204722074 | F37: 408.131 | G37: -1.119871057 | H37: 20.47139919 | I37: 1.037175318
A38: =A37+Sheet2!H$5 -> -2.44 | B38: 11.48587207 | C38: -11.4852978 | D38: 11.39408495 | E38: 0.007435888051 | F38: 408.131 | G38: -0.9057255172 | H38: 20.56766869 | I38: 0.9409058201
A39: =A38+Sheet2!H$5 -> -2.43 | B39: 11.3039215 | C39: -11.30335632 | D39: 11.2135884 | E39: 0.007674383389 | F39: 408.131 | G39: -0.691579978 | H39: 20.65837375 | I39: 0.8502007573
A40: =A39+Sheet2!H$5 -> -2.41 | B40: 11.12485325 | C40: -11.12429702 | D40: 11.03595114 | E40: 0.007920434739 | F40: 408.131 | G40: -0.4774344387 | H40: =yy0+SQRT(r0^2-(G40-xx0)^2) -> 20.74366596 | I40: =2*yy0-H40 -> 0.7649085507
A41: =A40+Sheet2!H$5 -> -2.39 | B41: 10.94862166 | C41: -10.94807425 | D41: 10.86112788 | E41: 0.008174275385 | F41: 408.131 | G41: =G40+dr -> -0.2632888994 | H41: 20.82368286 | I41: 0.6848916516
A42: =A41+Sheet2!H$5 -> -2.38 | B42: 10.77518181 | C42: -10.77464307 | D42: 10.68907404 | E42: 0.008436145414 | F42: 408.131 | G42: -0.04914336018 | H42: 20.89854928 | I42: 0.610025226
A43: =A42+Sheet2!H$5 -> -2.36 | B43: 10.60448946 | C43: -10.60395925 | D43: 10.51974574 | E43: 0.008706291887 | F43: 408.131 | G43: 0.1650021791 | H43: 20.96837849 | I43: 0.5401960187
A44: =A43+Sheet2!H$5 -> -2.35 | B44: 10.43650109 | C44: -10.43597928 | D44: 10.35309982 | E44: 0.008984969016 | F44: 408.131 | G44: 0.3791477184 | H44: 21.03327314 | I44: 0.4753013696
A45: =A44+Sheet2!H$5 -> -2.33 | B45: 10.27117386 | C45: -10.27066032 | D45: 10.18909377 | E45: 0.009272438332 | F45: 408.131 | G45: 0.5932932576 | H45: 21.09332615 | I45: 0.4152483608
A46: =A45+Sheet2!H$5 -> -2.31 | B46: 10.10846563 | C46: -10.10796022 | D46: 10.02768579 | E46: 0.009568968883 | F46: 408.131 | G46: 0.8074387969 | H46: 21.14862143 | I46: 0.3599530745
A47: =A46+Sheet2!H$5 -> -2.30 | B47: 9.948334892 | C47: -9.947837492 | D47: 9.868834706 | E47: 0.009874837392 | F47: 408.131 | G47: 1.021584336 | H47: 21.19923456 | I47: 0.3093399487
A48: =A47+Sheet2!H$5 -> -2.28 | B48: 9.79074083 | C48: -9.790251309 | D48: 9.712500025 | E48: 0.01019032846 | F48: 98.132 | G48: 1.235729875 | H48: 21.24523329 | I48: 0.2633412165
A49: =A48+Sheet2!H$5 -> -2.27 | B49: 9.635643254 | C49: -9.635161488 | D49: 9.558641883 | E49: 0.01051573473 | F49: 95.096 | G49: 1.449875415 | H49: 21.28667809 | I49: 0.2218964195
A50: =A49+Sheet2!H$5 -> -2.25 | B50: 9.483002618 | C50: -9.482528484 | D50: 9.407221044 | E50: 0.01085135711 | F50: 92.154 | G50: 1.664020954 | H50: 21.32362252 | I50: 0.1849519866
A51: =A50+Sheet2!H$5 -> -2.23 | B51: 9.332780001 | C51: -9.332313377 | D51: 9.258198903 | E51: 0.01119750492 | F51: 89.306 | G51: 1.878166493 | H51: 21.35611364 | I51: 0.1524608701
A52: =A51+Sheet2!H$5 -> -2.22 | B52: 9.184937098 | C52: -9.184477866 | D52: 9.111537457 | E52: 0.01155449611 | F52: 86.546 | G52: 2.092312032 | H52: 21.38419227 | I52: 0.1243822342
A53: =A52+Sheet2!H$5 -> -2.20 | B53: 9.039436211 | C53: -9.038984254 | D53: 8.967199312 | E53: 0.01192265743 | F53: 83.874 | G53: 2.306457572 | H53: 21.40789332 | I53: 0.1006811903
A54: =A53+Sheet2!H$5 -> -2.19 | B54: 8.89624024 | C54: -8.895795443 | D54: 8.825147663 | E54: 0.01230232465 | F54: 81.285 | G54: 2.520603111 | H54: 21.42724593 | I54: 0.08132857475
A55: =A54+Sheet2!H$5 -> -2.17 | B55: 8.755312672 | C55: -8.754874921 | D55: 8.685346291 | E55: 0.01269384272 | F55: 78.778 | G55: 2.73474865 | H55: 21.44227374 | I55: 0.06630076669
A56: =A55+Sheet2!H$5 -> -2.15 | B56: 8.616617573 | C56: -8.616186757 | D56: 8.547759548 | E56: 0.01309756599 | F56: 76.350 | G56: 2.94889419 | H56: 21.45299497 | I56: 0.05557954172
A57: =A56+Sheet2!H$5 -> -2.14 | B57: 8.480119578 | C57: -8.479695586 | D57: 8.412352349 | E57: 0.01351385838 | F57: 73.998 | G57: 3.163039729 | H57: 21.45942255 | I57: 0.04915196065
A58: =A57+Sheet2!H$5 -> -2.12 | B58: 8.345783882 | C58: -8.345366607 | D58: 8.279090171 | E58: 0.01394309359 | F58: 71.720 | G58: 3.377185268 | H58: 21.46156422 | I58: 0.04701029107
A59: =A58+Sheet2!H$5 -> -2.11 | B59: 8.213576231 | C59: -8.213165566 | D59: 8.147939032 | E59: 0.01438565527 | F59: 69.514 | G59: 3.591330807 | H59: 21.45942255 | I59: 0.04915196065
A60: =A59+Sheet2!H$5 -> -2.09 | B60: 8.083462915 | C60: -8.083058755 | D60: 8.018865491 | E60: 0.01484193724 | F60: 67.377 | G60: 3.805476347 | H60: 21.45299497 | I60: 0.05557954172
A61: =A60+Sheet2!H$5 -> -2.07 | B61: 7.955410756 | C61: -7.955012999 | D61: 7.891836636 | E61: 0.01531234363 | F61: 65.307 | G61: 4.019621886 | H61: 21.44227374 | I61: 0.06630076669
A62: =A61+Sheet2!H$5 -> -2.06 | B62: 7.829387104 | C62: -7.828995647 | D62: 7.766820077 | E62: 0.01579728913 | F62: 63.302 | G62: 4.233767425 | H62: 21.42724593 | I62: 0.08132857475
A63: =A62+Sheet2!H$5 -> -2.04 | B63: 7.705359823 | C63: -7.704974568 | D63: 7.643783937 | E63: 0.01629719911 | F63: 61.360 | G63: 4.447912964 | H63: 21.40789332 | I63: 0.1006811903
A64: =A63+Sheet2!H$5 -> -2.03 | B64: 7.58329729 | C64: -7.582918138 | D64: 7.522696843 | E64: 0.01681250983 | F64: 59.480 | G64: 4.662058504 | H64: 21.38419227 | I64: 0.1243822342
A65: =A64+Sheet2!H$5 -> -2.01 | B65: 7.46316838 | C65: -7.462795234 | D65: 7.403527921 | E65: 0.01734366861 | F65: 57.658 | G65: 4.876204043 | H65: 21.35611364 | I65: 0.1524608701
A66: =A65+Sheet2!H$5 -> -1.99 | B66: 7.344942463 | C66: -7.344575228 | D66: 7.286246782 | E66: 0.01789113401 | F66: 55.894 | G66: 5.090349582 | H66: 21.32362252 | I66: 0.1849519866
A67: =A66+Sheet2!H$5 -> -1.98 | B67: =EXP(-x) -> 7.228589391 | C67: -7.228227974 | D67: =(C68-C67)/dx -> 7.170823522 | E67: 0.01845537597 | F67: 54.185 | G67: 5.304495121 | H67: 21.28667809 | I67: 0.2218964195
A68: =A67+Sheet2!H$5 -> -1.96 | B68: 7.114079498 | C68: =(B570-B68)/0.0001 -> -7.113723806 | D68: 7.057228714 | E68: =ABS(D68)/(1+C68^2)^(3/2) -> 0.01903687599 | F68: 52.530 | G68: 5.518640661 | H68: 21.24523329 | I68: 0.2633412165
A69: =A68+Sheet2!H$5 -> -1.95 | B69: 7.001383584 | C69: -7.001033527 | D69: 6.945433387 | E69: 0.01963612726 | F69: =IF(1/E69>100,F68,1/E69) -> 50.927 | G69: 5.7327862 | H69: 21.19923456 | I69: 0.3093399487
A70: =A69+Sheet2!H$5 -> -1.93 | B70: 6.890472915 | C70: -6.890128403 | D70: 6.835409039 | E70: 0.02025363484 | F70: 49.374 | G70: 5.946931739 | H70: 21.14862143 | I70: 0.3599530745
A71: =A70+Sheet2!H$5 -> -1.91 | B71: 6.781319209 | C71: -6.780980155 | D71: 6.727127614 | E71: 0.02088991574 | F71: 47.870 | G71: 6.161077279 | H71: 21.09332615 | I71: 0.4152483608
A72: =A71+Sheet2!H$5 -> -1.90 | B72: 6.673894635 | C72: -6.673560951 | D72: 6.620561502 | E72: 0.02154549909 | F72: 46.413 | G72: 6.375222818 | H72: =yy0+SQRT(r0^2-(G72-xx0)^2) -> 21.03327314 | I72: =2*yy0-H72 -> 0.4753013696
A73: =A72+Sheet2!H$5 -> -1.88 | B73: 6.5681718 | C73: -6.567843402 | D73: 6.515683531 | E73: 0.02222092623 | F73: 45.003 | G73: =G72+dr -> 6.589368357 | H73: 20.96837849 | I73: 0.5401960187
A74: =A73+Sheet2!H$5 -> -1.87 | B74: 6.464123747 | C74: -6.463800552 | D74: 6.412466958 | E74: 0.02291675085 | F74: 43.636 | G74: 6.803513896 | H74: 20.89854928 | I74: 0.610025226
A75: =A74+Sheet2!H$5 -> -1.85 | B75: 6.361723945 | C75: -6.36140587 | D75: 6.310885464 | E75: 0.02363353899 | F75: 42.313 | G75: 7.017659436 | H75: 20.82368286 | I75: 0.6848916516
A76: =A75+Sheet2!H$5 -> -1.83 | B76: 6.260946284 | C76: -6.260633247 | D76: 6.210913148 | E76: 0.02437186921 | F76: 41.031 | G76: 7.231804975 | H76: 20.74366596 | I76: 0.7649085507
A77: =A76+Sheet2!H$5 -> -1.82 | B77: 6.161765068 | C77: -6.16145699 | D77: 6.112524518 | E77: 0.02513233259 | F77: 39.789 | G77: 7.445950514 | H77: 20.65837375 | I77: 0.8502007573
A78: =A77+Sheet2!H$5 -> -1.80 | B78: 6.064155005 | C78: -6.063851808 | D78: 6.015694488 | E78: 0.02591553282 | F78: 38.587 | G78: 7.660096053 | H78: 20.56766869 | I78: 0.9409058201
A79: =A78+Sheet2!H$5 -> -1.79 | B79: 5.968091208 | C79: -5.967792814 | D79: 5.920398367 | E79: 0.02672208614 | F79: 37.422 | G79: 7.874241593 | H79: 20.47139919 | I79: 1.037175318
A80: =A79+Sheet2!H$5 -> -1.77 | B80: 5.873549182 | C80: -5.873255515 | D80: 5.826611855 | E80: 0.02755262144 | F80: 36.294 | G80: 8.088387132 | H80: 20.36939812 | I80: 1.139176388
A81: =A80+Sheet2!H$5 -> -1.75 | B81: 5.78050482 | C81: -5.780215804 | D81: 5.734311038 | E81: 0.02840778015 | F81: 35.202 | G81: 8.302532671 | H81: 20.261481 | I81: 1.247093508
A82: =A81+Sheet2!H$5 -> -1.74 | B82: 5.688934397 | C82: -5.688649959 | D82: 5.643472382 | E82: 0.02928821627 | F82: 34.143 | G82: 8.51667821 | H82: 20.14744393 | I82: 1.361130582
A83: =A82+Sheet2!H$5 -> -1.72 | B83: 5.598814563 | C83: -5.598534632 | D83: 5.554072724 | E83: 0.03019459626 | F83: 33.119 | G83: 8.73082375 | H83: 20.02706111 | I83: 1.481513399
A84: =A83+Sheet2!H$5 -> -1.71 | B84: 5.510122341 | C84: -5.509846844 | D84: 5.466089269 | E84: 0.03112759895 | F84: 32.126 | G84: 8.944969289 | H84: 19.90008197 | I84: 1.608492534
A85: =A84+Sheet2!H$5 -> -1.69 | B85: 5.422835114 | C85: -5.422563981 | D85: 5.37949958 | E85: 0.03208791541 | F85: 31.164 | G85: 9.159114828 | H85: 19.7662277 | I85: 1.742346812
A86: =A85+Sheet2!H$5 -> -1.67 | B86: 5.336930626 | C86: -5.336663788 | D86: 5.294281582 | E86: 0.03307624883 | F86: 30.233 | G86: 9.373260368 | H86: 19.62518706 | I86: 1.883387448
A87: =A86+Sheet2!H$5 -> -1.66 | B87: 5.252386973 | C87: -5.252124362 | D87: 5.210413542 | E87: 0.03409331429 | F87: 29.331 | G87: 9.587405907 | H87: 19.47661146 | I87: 2.031963047
A88: =A87+Sheet2!H$5 -> -1.64 | B88: 5.169182596 | C88: -5.168924146 | D88: 5.127874078 | E88: 0.03513983852 | F88: 28.458 | G88: 9.801551446 | H88: 19.32010883 | I88: 2.188465684
A89: =A88+Sheet2!H$5 -> -1.63 | B89: 5.087296281 | C89: -5.087041925 | D89: 5.046642141 | E89: 0.03621655971 | F89: 27.612 | G89: 10.01569699 | H89: 19.15523614 | I89: 2.353338371
A90: =A89+Sheet2!H$5 -> -1.61 | B90: 5.006707148 | C90: -5.006456821 | D90: 4.96669702 | E90: 0.03732422715 | F90: 26.792 | G90: 10.22984252 | H90: 18.98149021 | I90: 2.527084298
A91: =A90+Sheet2!H$5 -> -1.59 | B91: 4.927394647 | C91: -4.927148286 | D91: 4.88801833 | E91: 0.03846360087 | F91: 25.999 | G91: 10.44398806 | H91: 18.79829609 | I91: 2.710278415
A92: =A91+Sheet2!H$5 -> -1.58 | B92: 4.849338556 | C92: -4.849096097 | D92: 4.810586008 | E92: 0.03963545131 | F92: 25.230 | G92: 10.6581336 | H92: 18.6049924 | I92: 2.903582107
A93: =A92+Sheet2!H$5 -> -1.56 | B93: 4.77251897 | C93: -4.772280352 | D93: 4.734380312 | E93: 0.04084055884 | F93: 24.485 | G93: 10.87227914 | H93: 18.40081246 | I93: 3.107762045
A94: =A93+Sheet2!H$5 -> -1.55 | B94: 4.696916303 | C94: -4.696681465 | D94: 4.659381809 | E94: 0.04207971327 | F94: 23.764 | G94: 11.08642468 | H94: 18.18485975 | I94: 3.323714757
A95: =A94+Sheet2!H$5 -> -1.53 | B95: 4.622511276 | C95: -4.622280159 | D95: 4.585571375 | E95: 0.04335371332 | F95: 23.066 | G95: 11.30057022 | H95: 17.95607529 | I95: 3.552499222
A96: =A95+Sheet2!H$5 -> -1.51 | B96: 4.549284919 | C96: -4.549057462 | D96: 4.512930192 | E96: 0.04466336604 | F96: 22.390 | G96: 11.51471576 | H96: 17.7131936 | I96: 3.795380914
A97: =A96+Sheet2!H$5 -> -1.50 | B97: 4.477218558 | C97: -4.476994704 | D97: 4.441439735 | E97: 0.04600948609 | F97: 21.735 | G97: 11.7288613 | H97: 17.45468183 | I97: 4.053892681
A98: =A97+Sheet2!H$5 -> -1.48 | B98: 4.406293818 | C98: -4.406073511 | D98: 4.371081777 | E98: 0.0473928951 | F98: 21.100 | G98: 11.94300684 | H98: 17.17865343 | I98: 4.329921076
A99: =A98+Sheet2!H$5 -> -1.47 | B99: 4.336492615 | C99: -4.336275798 | D99: 4.301838377 | E99: 0.04881442085 | F99: 20.486 | G99: 12.15715238 | H99: 16.882742 | I99: 4.625832513
A100: =A99+Sheet2!H$5 -> -1.45 | B100: 4.267797151 | C100: -4.267583768 | D100: 4.233691879 | E100: 0.05027489639 | F100: 19.891 | G100: 12.37129792 | H100: 16.5639101 | I100: 4.944664408
A101: =A100+Sheet2!H$5 -> -1.44 | B101: 4.200189908 | C101: -4.199979906 | D101: 4.166624907 | E101: 0.05177515916 | F101: 19.314 | G101: 12.58544346 | H101: 16.2181468 | I101: 5.290427712
A102: =A101+Sheet2!H$5 -> -1.42 | B102: 4.133653649 | C102: -4.133446973 | D102: 4.100620358 | E102: 0.05331604996 | F102: 18.756 | G102: 12.799589 | H102: 15.83996203 | I102: 5.668612475
A103: =A102+Sheet2!H$5 -> -1.40 | B103: 4.068171407 | C103: -4.067968005 | D103: 4.035661406 | E103: 0.05489841193 | F103: 18.215 | G103: 13.01373454 | H103: 15.42148108 | I103: 6.08709343
A104: =A103+Sheet2!H$5 -> -1.39 | B104: 4.003726486 | C104: -4.003526306 | D104: 3.971731483 | E104: 0.05652308929 | F104: 17.692 | G104: 13.22788007 | H104: =yy0+SQRT(r0^2-(G104-xx0)^2) -> 14.95066567 | I104: =2*yy0-H104 -> 6.557908839
A105: =A104+Sheet2!H$5 -> -1.37 | B105: 3.940302453 | C105: -3.940105444 | D105: 3.908814291 | E105: 0.05819092623 | F105: 17.185 | G105: 13.44202561 | H105: =yy0+SQRT(r0^2-(G105-xx0)^2) -> 14.4073365 | I105: =2*yy0-H105 -> 7.101238009
A106: =A105+Sheet2!H$5 -> -1.36 | B106: 3.877883136 | C106: -3.877689248 | D106: 3.846893786 | E106: 0.05990276549 | F106: 16.694 | G106: 13.65617115 | H106: =yy0+SQRT(r0^2-(G106-xx0)^2) -> 13.7523248 | I106: =2*yy0-H106 -> 7.756249705
A107: =A106+Sheet2!H$5 -> -1.34 | B107: 3.816452619 | C107: -3.816261802 | D107: 3.785954179 | E107: 0.06165944697 | F107: 16.218 | G107: 13.87031669 | H107: =yy0+SQRT(r0^2-(G107-xx0)^2) -> 12.88500847 | I107: =2*yy0-H107 -> 8.623566042
A108: =A107+Sheet2!H$5 -> -1.32 | B108: 3.755995238 | C108: -3.755807444 | D108: 3.725979931 | E108: 0.06346180623 | F108: 15.758 | G108: =xx0+r0 -> 14.08446223 | H108: =yy0 -> 10.75428725 | I108: =yy0 -> 10.75428725
A109: =A108+Sheet2!H$5 -> -1.31 | B109: 3.696495577 | C109: -3.696310759 | D109: 3.666955751 | E109: 0.0653106729 | F109: 15.311
A110: =A109+Sheet2!H$5 -> -1.29 | B110: 3.637938466 | C110: -3.637756575 | D110: 3.608866587 | E110: 0.06720686896 | F110: 14.879
A111: =A110+Sheet2!H$5 -> -1.28 | B111: 3.580308972 | C111: -3.580129963 | D111: 3.551697628 | E111: 0.06915120691 | F111: 14.461
A112: =A111+Sheet2!H$5 -> -1.26 | B112: 3.523592402 | C112: -3.523416228 | D112: 3.495434297 | E112: 0.07114448795 | F112: 14.056
A113: =A112+Sheet2!H$5 -> -1.24 | B113: 3.467774293 | C113: -3.46760091 | D113: 3.440062248 | E113: 0.07318749989 | F113: 13.664
A114: =A113+Sheet2!H$5 -> -1.23 | B114: 3.412840413 | C114: -3.412669776 | D114: 3.385567361 | E114: 0.07528101505 | F114: 13.284
A115: =A114+Sheet2!H$5 -> -1.21 | B115: 3.358776754 | C115: -3.358608821 | D115: 3.331935741 | E115: 0.07742578809 | F115: 12.916
A116: =A115+Sheet2!H$5 -> -1.20 | B116: 3.305569531 | C116: -3.305404258 | D116: 3.279153714 | E116: 0.07962255363 | F116: 12.559
A117: =A116+Sheet2!H$5 -> -1.18 | B117: 3.253205177 | C117: -3.253042522 | D117: 3.227207819 | E117: 0.08187202379 | F117: 12.214
A118: =A117+Sheet2!H$5 -> -1.16 | B118: 3.201670339 | C118: -3.201510261 | D118: 3.176084813 | E118: 0.08417488568 | F118: 11.880
A119: =A118+Sheet2!H$5 -> -1.15 | B119: 3.150951878 | C119: -3.150794336 | D119: 3.125771658 | E119: 0.0865317987 | F119: 11.556
A120: =A119+Sheet2!H$5 -> -1.13 | B120: 3.101036861 | C120: -3.100881815 | D120: 3.076255528 | E120: 0.08894339183 | F120: 11.243
A121: =A120+Sheet2!H$5 -> -1.12 | B121: 3.05191256 | C121: -3.05175997 | D121: 3.027523794 | E121: 0.0914102606 | F121: 10.940
A122: =A121+Sheet2!H$5 -> -1.10 | B122: 3.00356645 | C122: -3.003416277 | D122: 2.979564032 | E122: 0.09393296431 | F122: 10.646
A123: =A122+Sheet2!H$5 -> -1.08 | B123: 2.955986202 | C123: -2.955838408 | D123: 2.932364012 | E123: 0.09651202271 | F123: 10.361
A124: =A123+Sheet2!H$5 -> -1.07 | B124: 2.909159685 | C124: -2.909014232 | D124: 2.8859117 | E124: 0.09914791295 | F124: 10.086
A125: =A124+Sheet2!H$5 -> -1.05 | B125: 2.863074959 | C125: -2.86293181 | D125: 2.840195251 | E125: 0.1018410662 | F125: 9.819
A126: =A125+Sheet2!H$5 -> -1.04 | B126: 2.817720272 | C126: -2.81757939 | D126: 2.795203008 | E126: 0.1045918644 | F126: 9.561
A127: =A126+Sheet2!H$5 -> -1.02 | B127: 2.77308406 | C127: -2.77294541 | D127: 2.750923497 | E127: 0.1074006364 | F127: 9.311
A128: =A127+Sheet2!H$5 -> -1.00 | B128: 2.729154941 | C128: -2.729018488 | D128: 2.70734543 | E128: 0.1102676549 | F128: 9.069
A129: =A128+Sheet2!H$5 -> -0.99 | B129: 2.685921715 | C129: -2.685787423 | D129: 2.664457693 | E129: 0.1131931324 | F129: 8.834
A130: =A129+Sheet2!H$5 -> -0.97 | B130: 2.643373357 | C130: -2.643241193 | D130: 2.622249352 | E130: 0.1161772177 | F130: 8.608
A131: =A130+Sheet2!H$5 -> -0.96 | B131: =EXP(-x) -> 2.601499018 | C131: -2.601368948 | D131: =(C132-C131)/dx -> 2.580709644 | E131: 0.1192199921 | F131: 8.388
A132: =A131+Sheet2!H$5 -> -0.94 | B132: 2.560288021 | C132: =(B634-B132)/0.0001 -> -2.560160011 | D132: 2.539827977 | E132: =ABS(D132)/(1+C132^2)^(3/2) -> 0.1223214653 | F132: 8.175
A133: =A132+Sheet2!H$5 -> -0.92 | B133: 2.519729858 | C133: -2.519603876 | D133: 2.499593926 | E133: 0.125481572 | F133: =IF(1/E133>100,F132,1/E133) -> 7.969
A134: =A133+Sheet2!H$5 -> -0.91 | B134: 2.479814187 | C134: -2.4796902 | D134: 2.459997234 | E134: 0.1287001676 | F134: 7.770
A135: =A134+Sheet2!H$5 -> -0.89 | B135: 2.44053083 | C135: -2.440408807 | D135: 2.421027802 | E135: 0.1319770246 | F135: 7.577
A136: =A135+Sheet2!H$5 -> -0.88 | B136: 2.40186977 | C136: -2.401749681 | D136: 2.382675695 | E136: 0.1353118283 | F136: 7.390
A137: =A136+Sheet2!H$5 -> -0.86 | B137: 2.36382115 | C137: -2.363702963 | D137: 2.344931133 | E137: 0.1387041735 | F137: 7.210
A138: =A137+Sheet2!H$5 -> -0.84 | B138: 2.326375268 | C138: -2.326258953 | D138: 2.307784492 | E138: 0.1421535599 | F138: 7.035
A139: =A138+Sheet2!H$5 -> -0.83 | B139: 2.289522575 | C139: -2.289408103 | D139: 2.2712263 | E139: 0.1456593889 | F139: 6.865
A140: =A139+Sheet2!H$5 -> -0.81 | B140: 2.253253675 | C140: -2.253141016 | D140: 2.235247236 | E140: 0.1492209596 | F140: 6.701
A141: =A140+Sheet2!H$5 -> -0.80 | B141: 2.21755932 | C141: -2.217448446 | D141: 2.199838125 | E141: 0.1528374652 | F141: 6.543
A142: =A141+Sheet2!H$5 -> -0.78 | B142: 2.182430408 | C142: -2.18232129 | D142: 2.164989939 | E142: 0.1565079891 | F142: 6.389
A143: =A142+Sheet2!H$5 -> -0.76 | B143: 2.147857982 | C143: -2.147750592 | D143: 2.130693792 | E143: 0.1602315025 | F143: 6.241
A144: =A143+Sheet2!H$5 -> -0.75 | B144: 2.113833226 | C144: -2.113727538 | D144: 2.096940938 | E144: 0.1640068596 | F144: 6.097
A145: =A144+Sheet2!H$5 -> -0.73 | B145: 2.080347465 | C145: -2.080243451 | D145: 2.063722772 | E145: 0.167832796 | F145: 5.958
A146: =A145+Sheet2!H$5 -> -0.72 | B146: 2.04739216 | C146: -2.047289794 | D146: 2.031030823 | E146: 0.171707925 | F146: 5.824
A147: =A146+Sheet2!H$5 -> -0.70 | B147: 2.014958909 | C147: -2.014858164 | D147: 1.998856756 | E147: 0.1756307348 | F147: 5.694
A148: =A147+Sheet2!H$5 -> -0.68 | B148: 1.98303944 | C148: -1.982940292 | D148: 1.967192366 | E148: 0.179599587 | F148: 5.568
A149: =A148+Sheet2!H$5 -> -0.67 | B149: 1.951625616 | C149: -1.951528038 | D149: 1.936029579 | E149: 0.1836127134 | F149: 5.446
A150: =A149+Sheet2!H$5 -> -0.65 | B150: 1.920709427 | C150: -1.920613394 | D150: 1.90536045 | E150: 0.187668215 | F150: 5.329
A151: =A150+Sheet2!H$5 -> -0.64 | B151: 1.890282988 | C151: -1.890188477 | D151: 1.875177158 | E151: 0.19176406 | F151: 5.215
A152: =A151+Sheet2!H$5 -> -0.62 | B152: 1.860338542 | C152: -1.860245528 | D152: 1.845472008 | E152: 0.1958980829 | F152: 5.105
A153: =A152+Sheet2!H$5 -> -0.60 | B153: 1.830868454 | C153: -1.830776913 | D153: 1.816237424 | E153: 0.2000679838 | F153: 4.998
A154: =A153+Sheet2!H$5 -> -0.59 | B154: 1.801865208 | C154: -1.801775118 | D154: 1.787465953 | E154: 0.2042713278 | F154: 4.895
A155: =A154+Sheet2!H$5 -> -0.57 | B155: 1.773321411 | C155: -1.773232748 | D155: 1.759150257 | E155: 0.2085055454 | F155: 4.796
A156: =A155+Sheet2!H$5 -> -0.56 | B156: 1.745229783 | C156: -1.745142524 | D156: 1.731283118 | E156: 0.2127679328 | F156: 4.700
A157: =A156+Sheet2!H$5 -> -0.54 | B157: 1.717583161 | C157: -1.717497285 | D157: 1.703857429 | E157: 0.2170556532 | F157: 4.607
A158: =A157+Sheet2!H$5 -> -0.52 | B158: 1.690374496 | C158: -1.69028998 | D158: 1.676866197 | E158: 0.2213657378 | F158: 4.517
A159: =A158+Sheet2!H$5 -> -0.51 | B159: 1.663596851 | C159: -1.663513674 | D159: 1.65030254 | E159: 0.2256950886 | F159: 4.431
A160: =A159+Sheet2!H$5 -> -0.49 | B160: 1.637243397 | C160: -1.637161537 | D160: 1.624159684 | E160: 0.2300404801 | F160: 4.347
A161: =A160+Sheet2!H$5 -> -0.48 | B161: 1.611307415 | C161: -1.611226852 | D161: 1.598430964 | E161: 0.2343985631 | F161: 4.266
A162: =A161+Sheet2!H$5 -> -0.46 | B162: 1.585782291 | C162: -1.585703004 | D162: 1.573109819 | E162: 0.238765868 | F162: 4.188
A163: =A162+Sheet2!H$5 -> -0.45 | B163: 1.560661517 | C163: -1.560583486 | D163: 1.548189793 | E163: 0.2431388093 | F163: 4.113
A164: =A163+Sheet2!H$5 -> -0.43 | B164: 1.535938687 | C164: -1.535861893 | D164: 1.523664531 | E164: 0.24751369 | F164: 4.040
A165: =A164+Sheet2!H$5 -> -0.41 | B165: 1.511607498 | C165: -1.51153192 | D165: 1.49952778 | E165: 0.2518867073 | F165: 3.970
A166: =A165+Sheet2!H$5 -> -0.40 | B166: 1.487661745 | C166: -1.487587365 | D166: 1.475773385 | E166: 0.2562539585 | F166: 3.902
A167: =A166+Sheet2!H$5 -> -0.38 | B167: 1.464095323 | C167: -1.464022121 | D167: 1.45239529 | E167: 0.2606114476 | F167: 3.837
A168: =A167+Sheet2!H$5 -> -0.37 | B168: 1.440902223 | C168: -1.44083018 | D168: 1.429387533 | E168: 0.264955092 | F168: 3.774
A169: =A168+Sheet2!H$5 -> -0.35 | B169: 1.41807653 | C169: -1.418005629 | D169: 1.406744247 | E169: 0.2692807306 | F169: 3.714
A170: =A169+Sheet2!H$5 -> -0.33 | B170: 1.395612425 | C170: -1.395542647 | D170: 1.384459659 | E170: 0.2735841316 | F170: 3.655
A171: =A170+Sheet2!H$5 -> -0.32 | B171: 1.373504179 | C171: -1.373435507 | D171: 1.362528087 | E171: 0.2778610015 | F171: 3.599
A172: =A171+Sheet2!H$5 -> -0.30 | B172: 1.351746156 | C172: -1.351678571 | D172: 1.340943939 | E172: 0.2821069939 | F172: 3.545
A173: =A172+Sheet2!H$5 -> -0.29 | B173: 1.330332807 | C173: -1.330266293 | D173: 1.319701711 | E173: 0.2863177193 | F173: 3.493
A174: =A173+Sheet2!H$5 -> -0.27 | B174: 1.309258672 | C174: -1.309193211 | D174: 1.298795986 | E174: 0.2904887552 | F174: 3.442
A175: =A174+Sheet2!H$5 -> -0.25 | B175: 1.288518378 | C175: -1.288453954 | D175: 1.278221433 | E175: 0.2946156564 | F175: 3.394
A176: =A175+Sheet2!H$5 -> -0.24 | B176: 1.268106636 | C176: -1.268043233 | D176: 1.257972808 | E176: 0.2986939658 | F176: 3.348
A177: =A176+Sheet2!H$5 -> -0.22 | B177: 1.248018241 | C177: -1.247955842 | D177: 1.238044946 | E177: 0.3027192255 | F177: 3.303
A178: =A177+Sheet2!H$5 -> -0.21 | B178: 1.228248072 | C178: -1.228186662 | D178: 1.218432766 | E178: 0.306686988 | F178: 3.261
A179: =A178+Sheet2!H$5 -> -0.19 | B179: 1.208791087 | C179: -1.208730649 | D179: 1.199131268 | E179: 0.3105928281 | F179: 3.220
A180: =A179+Sheet2!H$5 -> -0.17 | B180: 1.189642325 | C180: -1.189582845 | D180: 1.180135529 | E180: 0.3144323543 | F180: 3.180
A181: =A180+Sheet2!H$5 -> -0.16 | B181: 1.170796903 | C181: -1.170738365 | D181: 1.161440707 | E181: 0.3182012205 | F181: 3.143
A182: =A181+Sheet2!H$5 -> -0.14 | B182: 1.152250016 | C182: -1.152192406 | D182: 1.143042034 | E182: 0.3218951381 | F182: 3.107
A183: =A182+Sheet2!H$5 -> -0.13 | B183: 1.133996936 | C183: -1.133940238 | D183: 1.124934819 | E183: 0.3255098876 | F183: 3.072
A184: =A183+Sheet2!H$5 -> -0.11 | B184: 1.116033006 | C184: -1.115977207 | D184: 1.107114445 | E184: 0.3290413307 | F184: 3.039
A185: =A184+Sheet2!H$5 -> -0.09 | B185: 1.098353648 | C185: -1.098298732 | D185: 1.089576368 | E185: 0.3324854214 | F185: 3.008
A186: =A185+Sheet2!H$5 -> -0.08 | B186: 1.080954353 | C186: -1.080900307 | D186: 1.072316116 | E186: 0.3358382177 | F186: 2.978
A187: =A186+Sheet2!H$5 -> -0.06 | B187: 1.063830685 | C187: -1.063777495 | D187: 1.055329289 | E187: 0.3390958929 | F187: 2.949
A188: =A187+Sheet2!H$5 -> -0.05 | B188: 1.046978277 | C188: -1.04692593 | D188: 1.038611553 | E188: 0.342254746 | F188: 2.922
A189: =A188+Sheet2!H$5 -> -0.03 | B189: 1.030392832 | C189: -1.030341314 | D189: 1.022158648 | E189: 0.3453112124 | F189: 2.896
A190: =A189+Sheet2!H$5 -> -0.01 | B190: 1.014070121 | C190: -1.014019419 | D190: 1.005966377 | E190: 0.3482618743 | F190: 2.871
A191: =A190+Sheet2!H$5 -> 0.00 | B191: 0.9980059827 | C191: -0.9979560841 | D191: 0.9900306117 | E191: 0.3511034693 | F191: 2.848
A192: =A191+Sheet2!H$5 -> 0.02 | B192: 0.9821963202 | C192: -0.982147212 | D192: 0.9743472891 | E192: 0.3538329005 | F192: 2.826
A193: =A192+Sheet2!H$5 -> 0.03 | B193: 0.9666371025 | C193: -0.9665887723 | D193: 0.9589124098 | E193: 0.3564472439 | F193: 2.805
A194: =A193+Sheet2!H$5 -> 0.05 | B194: 0.9513243623 | C194: -0.9512767977 | D194: 0.9437220384 | E194: 0.3589437571 | F194: 2.786
A195: =A194+Sheet2!H$5 -> 0.07 | B195: =EXP(-x) -> 0.936254195 | C195: -0.9362073839 | D195: =(C196-C195)/dx -> 0.9287723015 | E195: 0.3613198858 | F195: 2.768
A196: =A195+Sheet2!H$5 -> 0.08 | B196: 0.9214227581 | C196: =(B698-B196)/0.0001 -> -0.9213766885 | D196: 0.914059387 | E196: =ABS(D196)/(1+C196^2)^(3/2) -> 0.3635732705 | F196: 2.750
A197: =A196+Sheet2!H$5 -> 0.10 | B197: 0.9068262696 | C197: -0.9067809298 | D197: 0.8995795436 | E197: 0.3657017522 | F197: =IF(1/E197>100,F196,1/E197) -> 2.734
A198: =A197+Sheet2!H$5 -> 0.11 | B198: 0.8924610077 | C198: -0.8924163862 | D198: 0.885329079 | E198: 0.3677033772 | F198: 2.720
A199: =A198+Sheet2!H$5 -> 0.13 | B199: 0.8783233096 | C199: -0.8782793949 | D199: 0.8713043594 | E199: 0.3695764014 | F199: 2.706
A200: =A199+Sheet2!H$5 -> 0.15 | B200: 0.8644095703 | C200: -0.8643663512 | D200: 0.8575018091 | E200: 0.3713192937 | F200: 2.693
... 806 more rows

Sheet Sheet3
